[Event "16th HSG Open-A 2022"]
[Site "Hilversum"]
[Date "2022.06.19"]
[Round "5.9"]
[White "Tabak, Stefan"]
[Black "Wagenvoorde, Guido"]
[Result "1-0"]
[ECO "B40"]
[WhiteElo "2160"]
[BlackElo "2090"]
[Annotator "TA"]
[PlyCount "47"]
[EventDate "2022.06.17"]
[EventCountry "NED"]
[SourceTitle "playchess.com"]
[Source "ChessBase"]
[SourceQuality "1"]
[TimeControl "6600+10"]

{[%evp 9,47,0,14,0,0,8,47,28,69,36,35,12,72,66,79,-32,15,-45,81,-64,-11,-142,-66,-72,0,-40,162,165,294,313,950,949,933,892,1054,701,1052,514,29995,29996]} 1. e4 {[%emt 0:00:03]} c5 {[%emt 0:02:27][%cal Bc7c5,Bc5b4][%mdl 32]} 2. Nf3 {[%emt 0:00:53]} e6 {[%emt 0:00:23]} 3. b4 {[%emt 0:00:25]} cxb4 {[%emt 0:01:00]} 4. d4 {[%emt 0:00:07]} d6 {[%emt 0:06:21]} 5. a3 {[%emt 0:01:00]} bxa3 {[%emt 0:01:50]} 6. Bd3 {[%emt 0:00:10] B40: Sicilian: 2...e6, Unusual lines.} (6. Rxa3 d5 7. Re3 dxe4 8. Rxe4 Nf6 $17) 6... Be7 {[%emt 0:03:29]} ({Don't take} 6... Qa5+ 7. Qd2 (7. Bd2 Qd8 $14) 7... Qxd2+ 8. Bxd2 $14 (8. Nbxd2 d5 $14)) 7. O-O {[%emt 0:00:09]} Nd7 {[%emt 0:01:17]} 8. Nxa3 {[%emt 0:03:44] [#] White is slightly better.} e5 $146 {[%emt 0:22:55] Inhibits Bf4.} ({Predecessor:} 8... Ngf6 9. c4 O-O 10. e5 dxe5 11. dxe5 Ne8 12. Be3 g6 13. Nb5 a6 14. Bh6 Ng7 {0-1 (50) Granja Fuentes,J-Rubio Nevado,P (2100) Burguillos 2008}) 9. dxe5 {[%emt 0:07:48]} dxe5 {[%emt 0:05:49]} 10. Bb2 {[%emt 0:00:18]} Qc7 {[%emt 0:12:46]} (10... f6 $11) 11. Bb5 $16 {[%emt 0:09:20][%mdl 1024] Threatens to win with Bxe5. White has strong compensation.} f6 {[%emt 0:01:30]} 12. Qd3 {[%emt 0:16:22]} ({White should play} 12. Qd5 $16 {aiming for Rfd1.} Qc5 13. Qb3) 12... Nh6 {[%emt 0:04:47]} (12... a6 $15) 13. Rfd1 {[%emt 0:00:56]} (13. Qc4 $11 Qb8 14. Qa4) 13... Nf7 {[%emt 0:00:42]} (13... a6 $15 {keeps the upper hand.}) 14. Nh4 {[%emt 0:09:46] [#] White is much more active.} (14. Qc4 $1 $16 {[%cal Rc4c7]} Qxc4 15. Nxc4) 14... g6 {[%emt 0:07:24]} ({Better is} 14... O-O $1 $15) 15. Qh3 {[%emt 0:07:05]} (15. Qc4 $11 Qd8 16. Qd5 (16. Qe6 a6 $15)) 15... Ng5 {[%emt 0:07:09]} (15... a6 $17 16. c4 Rb8) 16. Qd3 {[%emt 0:05:47]} Nf7 {[%emt 0:01:59]} (16... a6 $17 17. Nf3 Nxf3+ 18. Qxf3 O-O) 17. Bc4 {[%emt 0:03:21]} O-O $2 {[%emt 0:05:17] A mistake that costs the game.} (17... Nc5 $15 {stays ahead.} 18. Nb5 Qb6) 18. Nb5 {[%emt 0:06:08][%csl LRa7,LRc7][%mdl 64] Discovered Attack, Double Attack} Qb6 {[%emt 0:02:12] [#]} (18... Qc6 $142) 19. Qg3 $1 $18 {[%emt 0:00:08][%cal Oh4g6]} Kh8 $2 {[%emt 0:12:53] [#]} (19... Bc5 20. Nxg6 Bxf2+ 21. Qxf2 hxg6) 20. Nxg6+ $1 {[%emt 0:03:52][%mdl 576] Demolition} hxg6 {[%emt 0:00:01]} 21. Qxg6 {[%emt 0:00:08] Strongly threatening Rd3.} Ng5 {[%emt 0:00:12]} 22. Bc1 {[%emt 0:03:22][%cal Ob5d6] And now Nd6! would win.} f5 {[%emt 0:01:34]} 23. Nd6 {[%emt 0:01:22]} (23. Rd6 $142 Bxd6 24. Bxg5) 23... Nh7 {[%emt 0:06:53]} (23... f4 $18 24. Qh5+ Nh7) 24. Bh6 {[%emt 0:00:38] Weighted Error Value: White=0.74/Black=0.98} 1-0

[Event "16th HSG Open-A 2022"]
[Site "Hilversum"]
[Date "2022.06.19"]
[Round "5.10"]
[White "Jashchenko, Vladimir"]
[Black "Becx, Cesar"]
[Result "0-1"]
[ECO "C22"]
[WhiteElo "2055"]
[BlackElo "2101"]
[Annotator "NA RC"]
[PlyCount "70"]
[EventDate "2022.06.17"]
[EventCountry "NED"]
[SourceTitle "playchess.com"]
[Source "ChessBase"]
[SourceQuality "1"]
[TimeControl "6600+10"]

1. e4 {[%emt 0:00:09]} e5 {[%emt 0:01:18]} 2. d4 {[%emt 0:00:39]} exd4 {[%emt 0:00:21]} 3. Qxd4 {[%emt 0:00:03]} Nc6 {[%emt 0:00:55]} 4. Qc4 {[%emt 0:00:03]} Nf6 {[%emt 0:06:47]} 5. Bg5 {[%emt 0:00:39]} h6 {[%emt 0:04:00]} 6. Bh4 {[%emt 0:06:42]} g5 {[%emt 0:08:00]} 7. Bg3 {[%emt 0:00:10]} d5 {[%emt 0:00:15]} 8. exd5 {[%emt 0:00:31]} Nxd5 {[%emt 0:13:03]} 9. Nd2 {[%emt 0:12:35]} Be6 {[%emt 0:02:14]} 10. O-O-O {[%emt 0:02:05]} Ndb4 {[%emt 0:12:30]} 11. Re1 {[%emt 0:16:49]} Nxa2+ {[%emt 0:27:45]} 12. Qxa2 {[%emt 0:01:31]} Qxd2+ {[%emt 0:00:04]} 13. Kxd2 {[%emt 0:00:54]} O-O-O+ {[%emt 0:00:04]} 14. Kc1 {[%emt 0:07:53]} Bxa2 {[%emt 0:00:06]} 15. Nf3 {[%emt 0:05:31]} Bb4 {[%emt 0:06:29]} 16. c3 {[%emt 0:00:51]} Bd6 {[%emt 0:01:12]} 17. Bb5 {[%emt 0:03:43]} Bd5 {[%emt 0:06:13]} 18. Bxc6 {[%emt 0:17:52]} Bxc6 {[%emt 0:00:10]} 19. Ne5 {[%emt 0:01:15]} Bd5 {[%emt 0:05:42]} 20. f3 {[%emt 0:02:11]} Rde8 {[%emt 0:04:12]} 21. c4 {[%emt 0:04:31]} Be6 {[%emt 0:00:30]} 22. b3 {[%emt 0:01:46]} Ba3+ {[%emt 0:03:14]} 23. Kc2 {[%emt 0:10:53]} Bb4 {[%emt 0:00:08]} 24. Rd1 {[%emt 0:01:14]} Bf5+ {[%emt 0:01:04]} 25. Kb2 {[%emt 0:01:00]} f6 {[%emt 0:00:14]} 26. Rd5 {[%emt 0:08:53]} fxe5 $19 {[%emt 0:00:56]} 27. Bxe5 {[%emt 0:00:17]} Rhf8 {[%emt 0:00:34]} 28. Rb5 {[%emt 0:02:56]} c6 {[%emt 0:01:30]} 29. Rxb4 {[%emt 0:00:25]} Rxe5 {[%emt 0:00:04]} 30. g4 {[%emt 0:00:45]} Re2+ {[%emt 0:00:11]} 31. Ka3 {[%emt 0:00:17]} Bd7 {[%emt 0:00:12]} 32. Ra4 {[%emt 0:00:09]} Rxf3 {[%emt 0:00:42]} 33. Rxa7 {[%emt 0:00:07]} Kb8 {[%emt 0:00:22]} 34. Ra5 {[%emt 0:00:02]} b6 {[%emt 0:00:15]} 35. Ra4 {[%emt 0:00:04]} c5 {[%emt 0:00:11]} 0-1

[Event "16th HSG Open-A 2022"]
[Site "Hilversum"]
[Date "2022.06.19"]
[Round "5.11"]
[White "In t Veld, Daan"]
[Black "Klaren, Oscar"]
[Result "1/2-1/2"]
[ECO "B22"]
[WhiteElo "2133"]
[BlackElo "1878"]
[Annotator "NA RC"]
[PlyCount "97"]
[EventDate "2022.06.17"]
[EventCountry "NED"]
[SourceTitle "playchess.com"]
[Source "ChessBase"]
[SourceQuality "1"]
[TimeControl "6600+10"]

1. e4 {[%emt 0:00:03]} c5 {[%emt 0:00:05]} 2. c3 {[%emt 0:00:08]} Nf6 {[%emt 0:00:06]} 3. e5 {[%emt 0:00:05]} Nd5 {[%emt 0:00:05]} 4. d4 {[%emt 0:00:18]} cxd4 {[%emt 0:00:28]} 5. Nf3 {[%emt 0:00:09]} Nc6 {[%emt 0:00:10]} 6. Bc4 {[%emt 0:00:12]} Nb6 {[%emt 0:00:06]} 7. Bb3 {[%emt 0:00:04]} d5 {[%emt 0:00:06]} 8. exd6 {[%emt 0:00:10]} Qxd6 {[%emt 0:00:12]} 9. O-O {[%emt 0:00:20]} Be6 {[%emt 0:00:50]} 10. Na3 {[%emt 0:00:59]} Bxb3 {[%emt 0:01:20] now scores much better than the old 10...dxc3.} 11. axb3 {[%emt 0:00:51]} dxc3 {[%emt 0:00:57]} 12. Nb5 {[%emt 0:03:03]} Qxd1 {[%emt 0:01:17]} 13. Rxd1 {[%emt 0:00:06]} Rc8 {[%emt 0:01:21]} 14. Nxa7 {[%emt 0:16:29]} Nxa7 {[%emt 0:02:42]} 15. Rxa7 {[%emt 0:00:11]} c2 {[%emt 0:00:09]} 16. Rd2 {[%emt 0:24:01]} Rc7 {[%emt 0:02:50] [#]} 17. Ne1 $146 {[%emt 0:02:31]} ({Predecessor:} 17. Nd4 e6 18. Kf1 Nd5 19. Rxc2 Kd7 20. Rxc7+ Kxc7 21. Ra8 g6 22. Nf3 f6 23. Nd4 {½-½ (29) Savic,M (2448)-Ajay,K (2315) Arandjelovac 2021}) 17... Nc8 {[%emt 0:21:46]} 18. Ra8 {[%emt 0:00:21]} g6 {[%emt 0:00:51]} 19. Rxc2 {[%emt 0:01:11]} Rxc2 {[%emt 0:00:14]} 20. Nxc2 {[%emt 0:00:05]} Kd7 {[%emt 0:00:08]} 21. Bd2 {[%emt 0:07:05]} Bg7 {[%emt 0:11:31]} 22. Bc3 {[%emt 0:00:08]} Bxc3 {[%emt 0:09:18]} 23. bxc3 {[%emt 0:00:06]} Rd8 {[%emt 0:00:05]} 24. Kf1 {[%emt 0:01:20]} Nd6 {[%emt 0:08:17]} 25. Rxd8+ {[%emt 0:00:21]} Kxd8 {[%emt 0:00:05]} 26. Ke2 {[%emt 0:02:01]} e5 {[%emt 0:02:54]} 27. c4 {[%emt 0:08:43]} Kd7 {[%emt 0:02:02]} 28. Kd3 {[%emt 0:03:21]} Kc6 {[%emt 0:06:04]} 29. b4 {[%emt 0:08:13]} f5 {[%emt 0:02:09]} 30. c5 {[%emt 0:10:06]} Nc8 {[%emt 0:15:02]} 31. f3 {[%emt 0:11:16]} h5 {[%emt 0:04:30]} 32. h4 {[%emt 0:01:56]} Kb5 {[%emt 0:02:40]} 33. Kc3 {[%emt 0:00:18]} Ne7 {[%emt 0:02:12]} 34. Kb3 {[%emt 0:00:41]} Nd5 {[%emt 0:00:49]} 35. Na3+ {[%emt 0:02:09]} Kc6 {[%emt 0:00:17]} 36. g3 {[%emt 0:01:00]} f4 {[%emt 0:04:01]} 37. gxf4 {[%emt 0:00:06]} Nxf4 {[%emt 0:00:10]} 38. Kc4 {[%emt 0:00:39]} g5 {[%emt 0:00:47]} 39. b5+ $19 {[%emt 0:02:21]} ({Don't blunder} 39. hxg5 $2 h4 40. g6 Nxg6 41. b5+ Kd7 $19) 39... Kd7 {[%emt 0:00:40]} 40. Nc2 {[%emt 0:00:42]} gxh4 {[%emt 0:01:23]} 41. Ne3 {[%emt 0:00:02]} h3 {[%emt 0:01:16]} 42. Nf1 {[%emt 0:00:04]} Ng2 {[%emt 0:00:53]} 43. Kd3 {[%emt 0:00:17]} Ke6 {[%emt 0:00:55]} 44. Ke4 {[%emt 0:00:06]} Nf4 {[%emt 0:00:58]} 45. c6 {[%emt 0:01:15]} bxc6 {[%emt 0:00:01]} 46. bxc6 {[%emt 0:00:04]} Nd5 {[%emt 0:00:43]} 47. f4 {[%emt 0:01:08]} exf4 {[%emt 0:01:37]} 48. c7 {[%emt 0:00:03]} Nxc7 {[%emt 0:00:15]} 49. Kxf4 {[%emt 0:00:00]} 1/2-1/2

[Event "16th HSG Open-A 2022"]
[Site "Hilversum"]
[Date "2022.06.19"]
[Round "5.12"]
[White "Slagboom, Leandro"]
[Black "Verfuerth, Thomas"]
[Result "1/2-1/2"]
[ECO "B38"]
[WhiteElo "1997"]
[BlackElo "2055"]
[Annotator "TA"]
[PlyCount "63"]
[EventDate "2022.06.17"]
[EventCountry "NED"]
[SourceTitle "playchess.com"]
[Source "ChessBase"]
[SourceQuality "1"]
[TimeControl "6600+10"]

{[%evp 14,63,39,29,53,50,50,50,42,47,41,39,48,45,53,26,34,29,30,31,30,37,40,50,57,32,40,44,52,22,35,35,39,36,44,46,46,41,39,31,33,28,23,21,37,4,29,15,78,0,0,-38]} 1. e4 {[%emt 0:00:03]} c5 {[%emt 0:00:06]} 2. Nf3 {[%emt 0:00:05]} d6 {[%emt 0:00:04]} 3. d4 {[%emt 0:00:04]} cxd4 {[%emt 0:00:05]} 4. Nxd4 {[%emt 0:00:05]} Nf6 {[%emt 0:00:07]} 5. f3 {[%emt 0:00:06]} g6 {[%emt 0:00:15]} 6. c4 {[%emt 0:00:06]} Nc6 {[%emt 0:00:58]} 7. Nc3 {[%emt 0:00:20]} Bg7 {[%emt 0:00:16]} 8. Be3 {[%emt 0:00:13]} Nxd4 {[%emt 0:04:34] B38: Sicilian: Maroczy Bind with 5...Bg7 and 7...0-0.} 9. Qxd4 {[%emt 0:01:43]} Be6 {[%emt 0:06:07]} 10. b3 {[%emt 0:04:44]} Qa5 {[%emt 0:03:50] [#] Strongly threatening ...Nh5. White is slightly better.} 11. Rc1 {[%emt 0:00:49]} O-O {[%emt 0:02:01][%cal Of6d5]} 12. Qd2 {[%emt 0:00:15] Against Nd5} Rac8 {[%emt 0:01:28] [#]} 13. Bd3 $146 {[%emt 0:01:17]} ({Predecessor:} 13. Be2 a6 14. O-O Rfe8 15. Rfd1 Nd7 16. Nd5 Qxd2 17. Rxd2 Bxd5 18. Rxd5 Rc6 19. Rd2 b5 20. Rdc2 b4 21. f4 Bc3 22. Rd1 Nf8 23. Bf3 e5 {½-½ (46) Diaz Reyes,F (1848)-Martin Hernandez,J (1849) Tenerife 2019}) 13... Rfd8 {[%emt 0:05:31]} 14. Ne2 {[%emt 0:01:39]} Qxd2+ {[%emt 0:00:33]} 15. Kxd2 {[%emt 0:00:02]} Nd7 {[%emt 0:05:57]} 16. h4 {[%emt 0:09:47][%cal Bh2h4,Bh4h5,Bh5h6][%mdl 32]} Nc5 {[%emt 0:06:54]} 17. h5 {[%emt 0:01:10]} Nxd3 {[%emt 0:02:16]} 18. Kxd3 {[%emt 0:00:01]} a6 {[%emt 0:09:09]} 19. Bb6 {[%emt 0:09:56] Black must now prevent hxg6.} Re8 {[%emt 0:02:13]} 20. a4 {[%emt 0:02:47]} Bd7 {[%emt 0:12:44]} 21. h6 {[%emt 0:06:38]} Rc6 {[%emt 0:03:30]} 22. a5 {[%emt 0:01:16]} Bb2 {[%emt 0:00:35]} 23. Rb1 {[%emt 0:03:49]} Be5 {[%emt 0:02:10]} 24. g4 {[%emt 0:03:39]} e6 {[%emt 0:03:23][%cal Od6d5]} 25. Bd4 {[%emt 0:07:02]} Bxd4 {[%emt 0:03:23]} 26. Nxd4 {[%emt 0:01:42]} Rc5 {[%emt 0:00:46]} 27. b4 {[%emt 0:01:52]} Rc7 {[%emt 0:00:28]} 28. Rhc1 {[%emt 0:10:27]} Rec8 {[%emt 0:01:53][%cal Od7b5]} 29. g5 {[%emt 0:07:45]} Kf8 {[%emt 0:06:34]} 30. Rc3 {[%emt 0:03:31]} e5 {[%emt 0:04:18] [#]} (30... f6 $11 {remains equal.}) 31. Ne2 {[%emt 0:05:13] White is more active.} (31. Nc2 $1 $16) 31... Ke7 {[%emt 0:02:36]} 32. Ng3 {[%emt 0:11:12] Weighted Error Value: White=0.11 (very precise) /Black=0.08 (flawless)} 1/2-1/2

[Event "16th HSG Open-A 2022"]
[Site "Hilversum"]
[Date "2022.06.19"]
[Round "6.1"]
[White "Beerdsen, Thomas"]
[Black "Harff, Marcel"]
[Result "1-0"]
[ECO "C13"]
[WhiteElo "2497"]
[BlackElo "2336"]
[Annotator "TA"]
[PlyCount "53"]
[EventDate "2022.06.17"]
[EventCountry "NED"]
[SourceTitle "playchess.com"]
[Source "ChessBase"]
[SourceQuality "1"]
[TimeControl "6600+10"]

{[%evp 16,53,31,16,9,0,6,0,0,2,23,26,64,54,102,108,118,110,93,50,53,41,114,120,78,3,80,56,93,114,107,99,112,24,152,152,145,144,500,497]} 1. e4 {[%emt 0:00:04]} e6 {[%emt 0:05:08]} 2. d4 {[%emt 0:00:06]} d5 {[%emt 0:00:05]} 3. Nc3 {[%emt 0:00:04]} dxe4 {[%emt 0:00:08]} 4. Nxe4 {[%emt 0:00:07]} Nd7 {[%emt 0:00:05]} 5. Nf3 {[%emt 0:00:09]} Ngf6 {[%emt 0:00:05]} 6. Bg5 {[%emt 0:00:29]} Be7 {[%emt 0:00:13]} 7. Nxf6+ {[%emt 0:00:14]} Bxf6 {[%emt 0:00:29] 7...Bxf6 scores better than 7...Nxf6.} 8. h4 {[%emt 0:00:07]} c5 {[%emt 0:00:20]} 9. Qd2 {[%emt 0:19:37]} cxd4 {[%emt 0:02:08] C13: French: Classical System: 4 Bg5 Be7, Alekhine-Chatard Attack.} 10. Nxd4 {[%emt 0:01:16]} h6 {[%emt 0:01:38] is the legacy move (10...0-0).} 11. Bxf6 {[%emt 0:02:31]} Nxf6 {[%emt 0:00:08] The position is equal.} 12. O-O-O {[%emt 0:06:10] [#] And now Bb5+ would win.} a6 $146 {[%emt 0:02:57] [#] Against Bb5+} ({Predecessor:} 12... O-O 13. f3 e5 14. Nb5 Qxd2+ 15. Rxd2 e4 16. Bc4 a6 17. Nd6 b5 18. Be2 exf3 19. Bxf3 {0-1 (42) Kovacevic,A (2575)-Lajthajm,B (2475) Valjevo 2011}) 13. Bd3 $1 {[%emt 0:07:02][%cal Od4f5]} Qc7 {[%emt 0:05:55]} (13... Qxd4 $2 14. Bb5+ $1 {[%mdl 512]} axb5 15. Qxd4 $18) (13... Bd7 14. Qb4) 14. g4 $1 {[%emt 0:07:05]} Nxg4 {[%emt 0:00:27] [#]} (14... Bd7 $14 {should be considered.}) 15. Rhg1 $1 $16 {[%emt 0:02:22]} Ne5 {[%emt 0:01:35]} 16. Rxg7 {[%emt 0:01:38][%cal Od3b5] Bb5+! is the strong threat.} Bd7 {[%emt 0:00:40] Inhibits Bb5.} 17. Kb1 {[%emt 0:10:16]} O-O-O $1 {[%emt 0:01:56]} 18. Be2 {[%emt 0:03:39]} Nc4 {[%emt 0:06:04]} (18... Bb5 $1 $14) 19. Bxc4 {[%emt 0:04:57]} Qxc4 {[%emt 0:00:03]} 20. Qf4 {[%emt 0:03:58]} (20. Rxf7 $2 e5 21. Qc3 Qxc3 22. bxc3 exd4 23. Rxd4 Bc6 $19) ({Better is} 20. Qe1 $16) 20... Rhe8 {[%emt 0:01:49]} (20... Qd5 $1 $11 21. c4 (21. Rxf7 $2 e5 $19) (21. Qxf7 Rhf8 $14) 21... Qc5) 21. b3 {[%emt 0:04:26]} (21. Rxf7 $2 e5 22. b3 Qxd4 23. Rxd4 exf4 24. Rfxf4 Re1+ 25. Kb2 Bc6 $19) 21... Qc5 {[%emt 0:00:53] Threatens to win with ...e5.} 22. Qxf7 {[%emt 0:04:00]} Rf8 {[%emt 0:00:11]} 23. Qg6 $36 {[%emt 0:02:11][%mdl 2048] White is on the roll. 0x0.001763082b0cdp-1022s more active pieces.} Kb8 {[%emt 0:01:58] aiming for ...Bc8.} 24. Rd3 {[%emt 0:03:02]} (24. Nxe6 $2 Bxe6 25. Rxd8+ Rxd8 $19) (24. Qg2 $2 Bc8 25. Qe4 e5 $19) (24. f4 $16) 24... e5 {[%emt 0:01:05] [#]} (24... Bc8 $11 25. Qe4 (25. Nxe6 Bxe6 26. Qxe6 Rxd3 $11) 25... Rd5) 25. Rxd7 $1 {[%emt 0:00:45][%mdl 512]} Rxd7 {[%emt 0:01:16]} 26. Ne6 {[%emt 0:01:09][%mdl 64] Discovered Attack, Double Attack} Rd6 {[%emt 0:00:19][%mdl 8192]} (26... Qc8 $16 {is a better chance.} 27. Rxd7 (27. Nxf8 Rxd3 28. Qxd3 Qxf8 $16) 27... Qxd7 28. Nxf8 Qd1+ 29. Kb2 Qd4+ 30. Kc1 (30. Kb1 Qd1+ 31. Kb2 Qd4+ 32. Kb1 Qd1+ $16) 30... Qf4+ 31. Kb2 Qd4+ 32. Kb1 Qd1+ 33. Kb2 Qd4+) 27. Nxc5 {[%emt 0:00:07] Weighted Error Value: White=0.19 (very precise) /Black=0.68} 1-0

[Event "16th HSG Open-A 2022"]
[Site "Hilversum"]
[Date "2022.06.19"]
[Round "6.2"]
[White "Pijpers, Arthur"]
[Black "Wiersma, Eelke"]
[Result "1-0"]
[ECO "B12"]
[WhiteElo "2463"]
[BlackElo "2299"]
[Annotator "TA"]
[PlyCount "63"]
[EventDate "2022.06.17"]
[EventCountry "NED"]
[SourceTitle "playchess.com"]
[Source "ChessBase"]
[SourceQuality "1"]
[TimeControl "6600+10"]

{[%evp 9,63,-2,2,4,4,9,3,-6,-12,-2,99,105,110,68,102,101,133,107,143,105,88,37,87,22,152,112,125,72,202,200,187,175,267,259,531,394,578,497,488,287,307,200,202,168,311,308,270,56,111,89,482,404,396,395,850,818]} 1. e4 {[%emt 0:00:03]} c6 {[%emt 0:00:09]} 2. d4 {[%emt 0:00:04]} d5 {[%emt 0:00:10]} 3. e5 {[%emt 0:00:06]} c5 {[%emt 0:01:04]} 4. Nf3 {[%emt 0:00:06]} cxd4 {[%emt 0:00:26]} 5. Qxd4 {[%emt 0:00:05]} Nc6 {[%emt 0:01:51][%cal Bb8c6,Bc6b4,Bb4d3][%mdl 32]} 6. Qf4 {[%emt 0:00:05] B12: Caro-Kann: Advance Variation.} e6 {[%emt 0:01:12]} 7. Bd3 {[%emt 0:00:24]} Nb4 {[%emt 0:04:04] [#]} 8. Bd2 $146 {[%emt 0:00:27] The position is equal.} ({Predecessor:} 8. Nc3 Nxd3+ 9. cxd3 Bd7 10. h4 h6 11. h5 Ne7 12. Nd4 Rc8 13. O-O a6 14. Be3 {0-1 (46) Shankland,S (2709)-Svidler,P (2714) Saint Louis 2021}) 8... Nxd3+ {[%emt 0:01:58]} 9. cxd3 {[%emt 0:00:13]} f5 {[%emt 0:07:03]} (9... Ne7 $11 {keeps the balance.}) 10. Nc3 {[%emt 0:08:06]} Bd7 {[%emt 0:01:52]} 11. Ne2 {[%emt 0:14:18]} Qb6 {[%emt 0:05:10]} 12. O-O {[%emt 0:01:08]} Ne7 {[%emt 0:00:56]} 13. Qg3 {[%emt 0:04:36]} Rc8 {[%emt 0:13:18]} 14. Bc3 {[%emt 0:04:46]} h6 {[%emt 0:05:03]} 15. Nf4 {[%emt 0:09:56]} (15. h4 $16) 15... Kf7 {[%emt 0:03:23]} (15... g5 $14 16. Nh5 Nc6) 16. Nh5 {[%emt 0:02:32]} ({White should play} 16. Rfe1 $16) 16... g6 {[%emt 0:11:41]} (16... Rg8 $11) 17. Nf6 $16 {[%emt 0:00:22]} Bb5 {[%emt 0:00:08]} 18. Nd4 {[%emt 0:10:51] White is much more active. Pair of Knights!} (18. Rfd1 $142) 18... Bg7 {[%emt 0:02:10]} (18... Nc6 $16 {was worth a try.} 19. Rac1 (19. Nxd5 $2 Nxd4 20. Qe3 Qd8 $19) 19... Rd8 20. Nxc6 (20. Nxb5 Qxb5 21. d4 Be7 $11) 20... Bxc6) 19. a4 {[%emt 0:01:40][%cal Ba2a4,Ba4a5][%mdl 32]} Ba6 {[%emt 0:04:48]} 20. Rac1 {[%emt 0:13:48]} g5 {[%emt 0:04:12]} (20... h5 $142 21. Nf3 Bh6) 21. Rfe1 $18 {[%emt 0:06:17]} Rhd8 $2 {[%emt 0:09:49]} (21... Rxc3 22. bxc3 Ng6 23. Nxd5 (23. Rb1 Qc5 $18) 23... Qc5) 22. Qh3 {[%emt 0:02:49]} Rc6 {[%emt 0:02:41]} (22... Ng6 $142 23. a5 Nf4 24. axb6 Nxh3+ 25. gxh3 axb6) 23. a5 {[%emt 0:08:15]} Qc7 {[%emt 0:00:16]} 24. Nxc6 {[%emt 0:00:04]} (24. Qh5+ $142 Ng6 25. Rcd1 (25. Nxc6 bxc6 26. Bd4 Bxd3 $18)) 24... bxc6 {[%emt 0:00:51]} 25. Bb4 {[%emt 0:03:18]} Ng6 {[%emt 0:00:24]} 26. Bd6 {[%emt 0:00:16]} Rxd6 {[%emt 0:00:31]} (26... Qxa5 $142 27. Nh5 Qd2) 27. exd6 {[%emt 0:00:28] Chess con chili.} Qxd6 {[%emt 0:00:09] [#]} 28. Nh5 {[%emt 0:03:06]} ({Only move:} 28. Qe3 $1 $18 {[%cal Re3a7]} Kxf6 (28... d4 29. Ne8) 29. Qxa7) 28... Bd4 {[%emt 0:03:47]} ({Black should try} 28... Bxb2 $14 29. Rcd1 Bc3) 29. Ng3 {[%emt 0:03:11]} Kg7 {[%emt 0:07:15][%mdl 8192] [#]} (29... Qf4 $16 30. Nh1 (30. Qxh6 Qxf2+ 31. Kh1 Nf4 $11) 30... Bb5) 30. Qxf5 $3 {[%emt 0:02:02][%mdl 512] Strongly threatening Nh5+.} Nf4 {[%emt 0:01:53] Inhibits Nh5+.} 31. Qg4 {[%emt 0:01:57] aiming for Nh5+.} Bxf2+ $2 {[%emt 0:00:23]} (31... c5 32. Ne2 Bxf2+ 33. Kxf2 Nxd3+ 34. Kg1 Qe5) 32. Kxf2 {[%emt 0:00:28] Weighted Error Value: White=0.48/Black=0.90} 1-0